fUST/lending_fUST_20250723
["ID","MTS","AMOUNT","RATE_DAILY","PERIOD"]
[374122554,1753213851384,-460.0,0.00019831,2]
[374122555,1753213851393,-460.0,0.00019831,2]
[374122556,1753213851402,-460.0,0.00019831,2]
[374122557,1753213851413,-831.12,0.00019831,2]
[374122558,1753213851422,-1215.2,0.00019832,2]
[374122559,1753213851432,-1288.79,0.00019832,2]
[374122560,1753213851441,-1247.68,0.00019832,2]
[374122561,1753213851451,-460.0,0.00019832,2]
[374122562,1753213851462,-1243.93,0.00019833,2]
[374122563,1753213851472,-780.38,0.00019833,2]
[374122564,1753213851481,-460.0,0.00019833,2]
[374122565,1753213851491,-642.18,0.00019833,2]
[374122566,1753213851500,-943.84,0.00019833,2]
[374122567,1753213851510,-634.78,0.00019834,2]
[374122568,1753213851520,-420.0,0.00019894,2]
[374122569,1753213851529,-1000.0,0.00019921,2]
[374122570,1753213851539,-500.0,0.00019921,2]
[374122571,1753213851549,-974.09407715,0.00019921,2]
[374122572,1753213851558,-472.07520401,0.00019921,2]
[374122573,1753213851567,-1000.0,0.00019921,2]
[374122574,1753213851576,-555.95152196,0.00019921,2]
[374122575,1753213851586,-1000.0,0.00019921,2]
[374122576,1753213851596,-500.0,0.00019921,2]
[374122577,1753213851605,-500.0,0.00019921,2]
[374122578,1753213851615,-350.99718503,0.00019921,2]
[374122579,1753213851625,-1008.53022819,0.00019921,2]
[374122580,1753213851634,-500.0,0.00019921,2]
[374122581,1753213851644,-1000.0,0.00019921,2]
[374122582,1753213851654,-502.10753571,0.00019921,2]
[374122583,1753213851664,-182.27073641,0.00019921,2]
[374122584,1753213851674,-300.35007006,0.00019921,2]
[374122585,1753213851684,-1000.0,0.00019921,2]
[374122586,1753213851694,-507.79648748,0.00019921,2]
[374122587,1753213851703,-1000.0,0.00019921,2]
[374122588,1753213851714,-151.53333552,0.0002,2]
[374122589,1753213851723,-2980.03897535,0.00020003,2]
[374122590,1753213851733,-151.0,0.00020061,2]
[374122591,1753213851742,-215.0738,0.00020061,2]
[374122592,1753213851752,-151.0,0.00020061,2]
[374122593,1753213851761,-151.0,0.00020061,2]
[374122594,1753213851770,-151.0,0.00020061,2]
[374122595,1753213851779,-151.0,0.00020061,2]
[374122596,1753213851789,-151.0,0.00020061,2]
[374122597,1753213851798,-151.0,0.00020061,2]
[374122598,1753213851808,-198.0,0.00020061,2]
[374122599,1753213851817,-151.0,0.00020061,2]
[374122600,1753213851827,-151.0,0.00020061,2]
[374122601,1753213851837,-151.0,0.00020061,2]
[374122602,1753213851846,-2014.40195529,0.00020061,2]
[374122603,1753213851855,-151.0,0.00020061,2]
[374122604,1753213851865,-151.0,0.00020061,2]
[374122605,1753213851874,-151.0,0.00020061,2]
[374122606,1753213851883,-151.0,0.00020061,2]
[374122607,1753213851893,-151.0,0.00020061,2]
[374122608,1753213851904,-151.0,0.00020061,2]
[374122609,1753213851916,-151.0,0.00020061,2]
[374122610,1753213851925,-151.0,0.00020061,2]
[374122611,1753213851935,-151.0,0.00020061,2]
[374122612,1753213851946,-151.0,0.00020061,2]
[374122613,1753213851955,-151.0,0.00020061,2]
[374122614,1753213851964,-151.0,0.00020061,2]
[374122615,1753213851973,-1096.09,0.00020103,2]
[374122616,1753213851983,-1184.94,0.00020104,2]
[374122617,1753213851992,-460.0,0.00020104,2]
[374122618,1753213852001,-1196.81,0.00020104,2]
[374122619,1753213852011,-460.0,0.00020104,2]
[374122620,1753213852020,-2821.8,0.00020104,2]
[374122621,1753213852030,-703.3,0.00020104,2]
[374122622,1753213852040,-460.0,0.00020104,2]
[374122623,1753213852049,-1386.55,0.00020104,2]
[374122624,1753213852058,-460.0,0.00020104,2]
[374122625,1753213852067,-460.0,0.00020104,2]
[374122626,1753213852076,-460.0,0.00020104,2]
[374122627,1753213852086,-460.0,0.00020104,2]
[374122628,1753213852095,-460.0,0.00020104,2]
[374122629,1753213852105,-295.41697422,0.00020105,2]
[374122630,1753213852114,-289.26,0.00020105,2]
[374122631,1753213852123,-449.37,0.00020105,2]
[374122632,1753213852132,-460.0,0.00020105,2]
[374122633,1753213852142,-460.0,0.00020105,2]
[374122634,1753213852151,-831.12,0.00020105,2]
[374122635,1753213852160,-1215.2,0.00020106,2]
[374122636,1753213852169,-1288.79,0.00020106,2]
[374122637,1753213852178,-1247.68,0.00020106,2]
[374122638,1753213852187,-460.0,0.00020106,2]
[374122639,1753213852196,-1243.93,0.00020107,2]
[374122640,1753213852206,-780.38,0.00020107,2]
[374122641,1753213852215,-460.0,0.00020107,2]
[374122642,1753213852224,-642.18,0.00020107,2]
[374122643,1753213852233,-943.84,0.00020107,2]
[374122644,1753213852242,-634.78,0.00020108,2]
[374122645,1753213852251,-535.340751,0.00020187,2]
[374122646,1753213852261,-2193.0,0.00020266,2]
[374122647,1753213852270,-207.78944833,0.00020291,2]
[374122648,1753213852280,-728.05112829,0.00020296,2]
[374122649,1753213852289,-2980.03897535,0.00020314,3]
[374122650,1753213852299,-1096.09,0.00020377,2]
[374122651,1753213852308,-1184.94,0.00020378,2]
[374122652,1753213852317,-460.0,0.00020378,2]
[374122653,1753213852328,-1196.81,0.00020378,2]
[374122654,1753213852337,-460.0,0.00020378,2]
[374122655,1753213852347,-2821.8,0.00020378,2]
[374122656,1753213852358,-703.3,0.00020378,2]
[374122657,1753213852367,-460.0,0.00020378,2]
[374122658,1753213852377,-1386.55,0.00020378,2]
[374122659,1753213852387,-460.0,0.00020378,2]
[374122660,1753213852396,-463.81381978,0.00020378,2]
[374122661,1753213852405,-460.0,0.00020378,2]
[374122662,1753213852415,-460.0,0.00020378,2]
[374122663,1753213852424,-416.47,0.00020378,2]
[374122664,1753213852434,-460.0,0.00020379,2]
[374122665,1753213852443,-460.0,0.00020379,2]
[374122666,1753213852453,-831.12,0.00020379,2]
[374122667,1753213852464,-1215.2,0.0002038,2]
[374122668,1753213852473,-1288.79,0.0002038,2]
[374122669,1753213852483,-1247.68,0.0002038,2]
[374122670,1753213852492,-460.0,0.0002038,2]
[374122671,1753213852502,-1243.93,0.00020381,2]
[374122672,1753213852511,-780.38,0.00020381,2]
[374122673,1753213852520,-460.0,0.00020381,2]
[374122674,1753213852530,-642.18,0.00020381,2]
[374122675,1753213852539,-943.84,0.00020381,2]
[374122676,1753213852549,-634.78,0.00020382,2]
[374122677,1753213852558,-697.62,0.00020428,2]
[374122678,1753213852567,-1500.0,0.00020468,2]
[374122679,1753213852577,-1000.0,0.00020468,2]
[374122680,1753213852587,-1500.0,0.00020468,2]
[374122681,1753213852596,-1565.08840486,0.00020468,2]
[374122682,1753213852606,-500.0,0.00020468,2]
[374122683,1753213852615,-464.349,0.00020614,2]
[374122684,1753213852625,-2980.03897535,0.00020624,3]
[374122685,1753213852635,-1096.09,0.00020651,2]
[374122686,1753213852645,-1184.94,0.00020652,2]
[374122687,1753213852654,-460.0,0.00020652,2]
[374122688,1753213852663,-1196.81,0.00020652,2]
[374122689,1753213852673,-460.0,0.00020652,2]
[374122690,1753213852682,-2821.8,0.00020652,2]
[374122691,1753213852691,-703.3,0.00020652,2]
[374122692,1753213852700,-460.0,0.00020652,2]
[374122693,1753213852712,-1386.55,0.00020652,2]
[374122694,1753213852721,-460.0,0.00020652,2]
[374122695,1753213852730,-460.0,0.00020652,2]
[374122696,1753213852740,-460.0,0.00020652,2]
[374122697,1753213852749,-460.0,0.00020653,2]
[374122698,1753213852758,-460.0,0.00020653,2]
[374122699,1753213852768,-831.12,0.00020653,2]
[374122700,1753213852777,-1215.2,0.00020654,2]
[374122701,1753213852786,-1288.79,0.00020654,2]
[374122702,1753213852795,-1247.68,0.00020654,2]
[374122703,1753213852804,-460.0,0.00020654,2]
[374122704,1753213852814,-1243.93,0.00020655,2]
[374122705,1753213852823,-780.38,0.00020655,2]
[374122706,1753213852832,-460.0,0.00020655,2]
[374122707,1753213852842,-642.18,0.00020655,2]
[374122708,1753213852851,-943.84,0.00020655,2]
[374122709,1753213852860,-948.88989156,0.00020743,2]
[374122710,1753213852870,-3953.64712961,0.00020887,2]
[374122711,1753213852879,-1096.09,0.00020925,2]
[374122712,1753213852890,-1184.94,0.00020926,2]
[374122713,1753213852899,-460.0,0.00020926,2]
[374122714,1753213852912,-1196.81,0.00020926,2]
[374122715,1753213852921,-460.0,0.00020926,2]
[374122716,1753213852930,-2821.8,0.00020926,2]
[374122717,1753213852940,-703.3,0.00020926,2]
[374122718,1753213852951,-460.0,0.00020926,2]
[374122719,1753213852962,-1386.55,0.00020926,2]
[374122720,1753213852971,-460.0,0.00020926,2]
[374122721,1753213852982,-460.0,0.00020926,2]
[374122722,1753213852991,-460.0,0.00020926,2]
[374122723,1753213853002,-460.0,0.00020927,2]
[374122724,1753213853011,-460.0,0.00020927,2]
[374122725,1753213853021,-831.12,0.00020927,2]
[374122726,1753213853030,-1215.2,0.00020928,2]
[374122727,1753213853041,-1288.79,0.00020928,2]
[374122728,1753213853050,-1247.68,0.00020928,2]
[374122729,1753213853060,-205.98,0.00020928,2]
[374122730,1753213853070,-1243.93,0.00020929,2]
[374122731,1753213853079,-780.38,0.00020929,2]
[374122732,1753213853088,-460.0,0.00020929,2]
[374122733,1753213853098,-642.18,0.00020929,2]
[374122734,1753213853107,-943.84,0.00020929,2]
[374122735,1753213853116,-2980.03897535,0.00020934,4]
[374122736,1753213853125,-250.59356224,0.0002097,2]
[374122737,1753213853134,-2000.0,0.00021016,2]
[374122738,1753213853144,-1096.09,0.00021199,2]
[374122739,1753213853153,-1184.94,0.000212,2]
[374122740,1753213853162,-86.73163957,0.000212,2]
[374122741,1753213853372,-373.26836043,0.000212,2]
[374122742,1753213853382,-1196.81,0.000212,2]
[374122743,1753213853392,-460.0,0.000212,2]
[374122744,1753213853402,-520.90163957,0.000212,2]
[374122745,1753213853466,-460.0,0.00016815,2]
[374122746,1753213853477,-460.0,0.00017089,2]
[374122747,1753213853486,-108.6187293,0.00017367,2]
[374122748,1753213853638,-460.0,0.00016816,2]
[374122749,1753213853648,-460.0,0.00016816,2]
[374122750,1753213853658,-232.23,0.0001709,2]
[374122751,1753213853668,-351.3812707,0.00017367,2]
[374122752,1753213853677,-460.0,0.00017641,2]
[374122753,1753213853687,-460.0,0.00017915,2]
[374122754,1753213853697,-460.0,0.00018189,2]
[374122755,1753213853707,-460.0,0.00018189,2]
[374122756,1753213853716,-460.0,0.00018463,2]
[374122757,1753213853725,-460.0,0.00018463,2]
[374122758,1753213853735,-460.0,0.00018737,2]
[374122759,1753213853744,-460.0,0.00019011,2]
[374122760,1753213853754,-460.0,0.00019285,2]
[374122761,1753213853763,-460.0,0.00019559,2]
[374122762,1753213853773,-460.0,0.00019833,2]
[374122763,1753213853782,-480.36,0.00020107,2]
[374122764,1753213853792,-2300.89836043,0.000212,2]
[374122765,1753213853801,-703.3,0.000212,2]
[374122766,1753213853811,-460.0,0.000212,2]
[374122767,1753213853819,-1386.55,0.000212,2]
[374122768,1753213853829,-460.0,0.000212,2]
[374122769,1753213853838,-414.25,0.000212,2]
[374122770,1753213853848,-460.0,0.000212,2]
[374122771,1753213853857,-460.0,0.00021201,2]
[374122772,1753213853867,-412.83,0.00021201,2]
[374122773,1753213853876,-831.12,0.00021201,2]
[374122774,1753213853886,-1215.2,0.00021202,2]
[374122775,1753213853896,-851.08048347,0.00021202,2]
[374122776,1753213853916,-460.0,0.0001709,2]
[374122777,1753213853925,-437.70951653,0.00021202,2]
[374122778,1753213853934,-1247.68,0.00021202,2]
[374122779,1753213853943,-1243.93,0.00021203,2]
[374122780,1753213853953,-780.38,0.00021203,2]
[374122781,1753213853963,-460.0,0.00021203,2]
[374122782,1753213853972,-642.18,0.00021203,2]
[374122783,1753213853983,-2980.03897535,0.00021245,4]
[374122784,1753213853992,-373.63,0.00021347,2]
[374122785,1753213854001,-3517.36497369,0.00021349,2]
[374122786,1753213854011,-223.0315306,0.0002143,2]
[374122787,1753213854020,-1096.09,0.00021473,2]
[374122788,1753213854029,-1184.94,0.00021474,2]
[374122789,1753213854038,-460.0,0.00021474,2]
[374122790,1753213854048,-1196.81,0.00021474,2]
[374122791,1753213854057,-347.8,0.00021474,2]
[374122792,1753213854067,-2821.8,0.00021474,2]
[374122793,1753213854076,-703.3,0.00021474,2]
[374122794,1753213854086,-460.0,0.00021474,2]
[374122795,1753213854095,-1386.55,0.00021474,2]
[374122796,1753213854105,-460.0,0.00021474,2]
[374122797,1753213854114,-460.0,0.00021474,2]
[374122798,1753213854123,-532.37,0.00021475,2]
[374122799,1753213854132,-831.12,0.00021475,2]
[374122800,1753213854141,-1215.2,0.00021476,2]
[374122801,1753213854150,-1288.79,0.00021476,2]
[374122802,1753213854159,-1247.68,0.00021476,2]
[374122803,1753213854169,-1243.93,0.00021477,2]
[374122804,1753213854178,-780.38,0.00021477,2]
[374122805,1753213854187,-447.12608137,0.00021477,2]
[374122806,1753213854196,-642.18,0.00021477,2]
[374122807,1753213854205,-207.78944833,0.00021482,2]
[374122808,1753213854214,-2980.03897535,0.00021555,5]
[374122809,1753213854223,-1096.09,0.00021747,2]
[374122810,1753213854232,-1184.94,0.00021748,2]
[374122811,1753213854242,-460.0,0.00021748,2]
[374122812,1753213854251,-1196.81,0.00021748,2]
[374122813,1753213854260,-2821.8,0.00021748,2]
[374122814,1753213854269,-703.3,0.00021748,2]
[374122815,1753213854278,-460.0,0.00021748,2]
[374122816,1753213854287,-1386.55,0.00021748,2]
[374122817,1753213854296,-198.47,0.00021748,2]
[374122818,1753213854306,-437.34,0.00021748,2]
[374122819,1753213854317,-831.12,0.00021749,2]
[374122820,1753213854325,-1215.2,0.0002175,2]
[374122821,1753213854336,-1288.79,0.0002175,2]
[374122822,1753213854345,-1247.68,0.0002175,2]
[374122823,1753213854354,-1243.93,0.00021751,2]
[374122824,1753213854363,-780.38,0.00021751,2]
[374122825,1753213854373,-642.18,0.00021751,2]
[374122826,1753213854382,-306.0,0.00021863,2]
[374122827,1753213854392,-153.0,0.00021863,2]
[374122828,1753213854402,-153.0,0.00021863,2]
[374122829,1753213854411,-159.8957685,0.00021863,2]
[374122830,1753213854420,-159.8957685,0.00021863,2]
[374122831,1753213854429,-153.0,0.00021863,2]
[374122832,1753213854439,-159.8957685,0.00021863,2]
[374122833,1753213854448,-159.8957685,0.00021863,2]
[374122834,1753213854458,-178.204927,0.00021863,2]
[374122835,1753213854468,-306.0,0.00021863,2]
[374122836,1753213854477,-178.204927,0.00021863,2]
[374122837,1753213854486,-159.8957685,0.00021863,2]
[374122838,1753213854495,-178.0151551,0.00021863,2]
[374122839,1753213854505,-159.8957685,0.00021863,2]
[374122840,1753213854514,-159.8957685,0.00021863,2]
[374122841,1753213854523,-178.204927,0.00021863,2]
[374122842,1753213854533,-178.204927,0.00021863,2]
[374122843,1753213854542,-159.5337947,0.00021863,2]
[374122844,1753213854552,-178.204927,0.00021863,2]
[374122845,1753213854562,-159.8957685,0.00021863,2]
[374122846,1753213854571,-159.8957685,0.00021863,2]
[374122847,1753213854582,-178.204927,0.00021863,2]
[374122848,1753213854592,-178.204927,0.00021863,2]
[374122849,1753213854601,-159.8957685,0.00021863,2]
[374122850,1753213854611,-159.8957685,0.00021863,2]
[374122851,1753213854620,-178.204927,0.00021863,2]
[374122852,1753213854630,-178.204927,0.00021863,2]
[374122853,1753213854639,-159.8957685,0.00021863,2]
[374122854,1753213854648,-159.8957685,0.00021863,2]
[374122855,1753213854658,-178.204927,0.00021863,2]
[374122856,1753213854668,-178.204927,0.00021863,2]
[374122857,1753213854679,-159.8957685,0.00021863,2]
[374122858,1753213854689,-2980.03897535,0.00021866,6]
[374122859,1753213854699,-153.0,0.0002189,2]
[374122860,1753213854708,-151.0,0.000219,3]
[374122861,1753213854717,-948.88989156,0.00022,2]
[374122862,1753213854727,-1096.09,0.00022021,2]
[374122863,1753213854736,-1184.94,0.00022022,2]
[374122864,1753213854745,-460.0,0.00022022,2]
[374122865,1753213854754,-1196.81,0.00022022,2]
[374122866,1753213854764,-2821.8,0.00022022,2]
[374122867,1753213854773,-703.3,0.00022022,2]
[374122868,1753213854783,-460.0,0.00022022,2]
[374122869,1753213854792,-1386.55,0.00022022,2]
[374122870,1753213854801,-831.12,0.00022023,2]
[374122871,1753213854811,-1215.2,0.00022024,2]
[374122872,1753213854820,-1288.79,0.00022024,2]
[374122873,1753213854829,-1247.68,0.00022024,2]
[374122874,1753213854838,-1243.93,0.00022025,2]
[374122875,1753213854848,-780.38,0.00022025,2]
[374122876,1753213854857,-642.18,0.00022025,2]
[374122877,1753213854867,-500.0,0.00022027,2]
[374122878,1753213854876,-151.0,0.00022027,2]
[374122879,1753213854885,-151.0,0.00022027,2]
[374122880,1753213854895,-151.0,0.00022027,2]
[374122881,1753213854905,-151.0,0.00022027,2]
[374122882,1753213854916,-151.0,0.00022027,2]
[374122883,1753213854926,-151.51462175,0.00022027,2]
[374122884,1753213854935,-151.0,0.00022027,2]
[374122885,1753213854944,-457.0,0.00022027,2]
[374122886,1753213854953,-151.0,0.00022027,2]
[374122887,1753213854966,-151.0,0.00022027,2]
[374122888,1753213854975,-210.36863264,0.00022027,2]
[374122889,1753213854985,-151.0,0.00022027,2]
[374122890,1753213854995,-277.5,0.000221,7]
[374122891,1753213855004,-1836.83,0.000221,7]
[374122892,1753213855014,-22163.0,0.000221,2]
[374122893,1753213855023,-2980.03897535,0.00022176,6]
[374122894,1753213855031,-429.6101251,0.00022274,2]
[374122895,1753213855040,-429.6101251,0.00022274,2]
[374122896,1753213855049,-1395.25,0.00022285,2]
[374122897,1753213855059,-1096.09,0.00022295,2]
[374122898,1753213855068,-1184.94,0.00022296,2]
[374122899,1753213855078,-460.0,0.00022296,2]
[374122900,1753213855087,-1196.81,0.00022296,2]
[374122901,1753213855096,-2821.8,0.00022296,2]
[374122902,1753213855106,-703.3,0.00022296,2]
[374122903,1753213855116,-468.09,0.00022296,2]
[374122904,1753213855125,-1386.55,0.00022296,2]
[374122905,1753213855134,-831.12,0.00022297,2]
[374122906,1753213855143,-1215.2,0.00022298,2]
[374122907,1753213855153,-1288.79,0.00022298,2]
[374122908,1753213855162,-1247.68,0.00022298,2]
[374122909,1753213855173,-1243.93,0.00022299,2]
[374122910,1753213855182,-780.38,0.00022299,2]
[374122911,1753213855191,-642.18,0.00022299,2]
[374122912,1753213855201,-500.0,0.00022301,2]
[374122913,1753213855214,-249.82361511,0.00022301,2]
[374122914,1753213855224,-457.0,0.00022301,2]
[374122915,1753213855234,-427.2002199,0.00022301,2]
[374122916,1753213855243,-1698.49,0.00022465,2]
[374122917,1753213855253,-2980.03897535,0.00022486,7]
[374122918,1753213855262,-1007.32558155,0.000225,2]
[374122919,1753213855271,-1096.09,0.00022569,2]
[374122920,1753213855281,-1184.94,0.0002257,2]
[374122921,1753213855290,-460.0,0.0002257,2]
[374122922,1753213855300,-1196.81,0.0002257,2]
[374122923,1753213855309,-2821.8,0.0002257,2]
[374122924,1753213855318,-703.3,0.0002257,2]
[374122925,1753213855327,-1386.55,0.0002257,2]
[374122926,1753213855338,-831.12,0.00022571,2]
[374122927,1753213855347,-1215.2,0.00022572,2]
[374122928,1753213855356,-1288.79,0.00022572,2]
[374122929,1753213855365,-1247.68,0.00022572,2]
[374122930,1753213855375,-1243.93,0.00022573,2]
[374122931,1753213855472,-780.38,0.00022573,2]
[374122932,1753213855482,-642.18,0.00022573,2]
[374122933,1753213855491,-500.0,0.00022575,2]
[374122934,1753213855501,-457.0,0.00022575,2]
[374122935,1753213855510,-151.0,0.000226,10]
[374122936,1753213855520,-439.413705,0.00022603,2]
[374122937,1753213855529,-159.8957685,0.00022685,2]
[374122938,1753213855539,-178.204927,0.00022685,2]
[374122939,1753213855549,-577.4526085,0.00022685,2]
[374122940,1753213855558,-577.4526085,0.00022685,2]
[374122941,1753213855567,-577.4526085,0.00022685,2]
[374122942,1753213855578,-577.4526085,0.00022685,2]
[374122943,1753213855587,-577.4526085,0.00022685,2]
[374122944,1753213855598,-586.886481,0.00022685,2]
[374122945,1753213855607,-577.4526085,0.00022685,2]
[374122946,1753213855617,-577.4526085,0.00022685,2]
[374122947,1753213855627,-577.4526085,0.00022685,2]
[374122948,1753213855636,-577.4526085,0.00022685,2]
[374122949,1753213855646,-577.4526085,0.00022685,2]
[374122950,1753213855656,-571.0920057,0.00022685,2]
[374122951,1753213855665,-159.8957685,0.00022712,2]
[374122952,1753213855674,-179.7206346,0.00022712,2]
[374122953,1753213855683,-159.8957685,0.00022712,2]
[374122954,1753213855693,-178.204927,0.00022712,2]
[374122955,1753213855702,-158.5186731,0.00022712,2]
[374122956,1753213855713,-178.204927,0.00022712,2]
[374122957,1753213855722,-178.204927,0.00022712,2]
[374122958,1753213855731,-178.204927,0.00022712,2]
[374122959,1753213855740,-166.1771152,0.00022712,2]
[374122960,1753213855749,-577.4526085,0.00022712,2]
[374122961,1753213855758,-577.4526085,0.00022712,2]
[374122962,1753213855767,-577.4526085,0.00022712,2]
[374122963,1753213855777,-338.9104582,0.00022712,2]
[374122964,1753213855786,-1040.22425571,0.0002277,2]
[374122965,1753213855795,-6568.71387872,0.0002278,2]
[374122966,1753213855804,-2980.03897535,0.00022797,7]
[374122967,1753213855814,-231.28369723,0.00022799,2]
[374122968,1753213855823,-1096.09,0.00022843,2]
[374122969,1753213855832,-1184.94,0.00022844,2]
[374122970,1753213855842,-369.93,0.00022844,2]
[374122971,1753213855851,-1196.81,0.00022844,2]
[374122972,1753213855860,-2821.8,0.00022844,2]
[374122973,1753213855870,-703.3,0.00022844,2]
[374122974,1753213855879,-1386.55,0.00022844,2]
[374122975,1753213855888,-831.12,0.00022845,2]
[374122976,1753213855898,-1215.2,0.00022846,2]
[374122977,1753213855909,-1288.79,0.00022846,2]
[374122978,1753213855918,-1247.68,0.00022846,2]
[374122979,1753213855927,-1243.93,0.00022847,2]
[374122980,1753213855937,-780.38,0.00022847,2]
[374122981,1753213855946,-642.18,0.00022847,2]
[374122982,1753213855955,-500.0,0.00022849,2]
[374122983,1753213855966,-457.0,0.00022849,2]
[374122984,1753213855975,-165.53,0.000229,7]
[374122985,1753213855985,-141029.19464611,0.00022929,2]
[374122986,1753213855995,-151.0,0.00022929,7]
[374122987,1753213856005,-151.0,0.00022929,7]
[374122988,1753213856014,-151.0,0.00022929,7]
[374122989,1753213856023,-151.0,0.00022929,7]
[374122990,1753213856032,-151.0,0.00022929,7]
[374122991,1753213856041,-151.0,0.00022929,7]
[374122992,1753213856051,-151.0,0.00022929,7]
[374122993,1753213856060,-151.0,0.00022929,2]
[374122994,1753213856070,-306.6828277,0.00022959,2]
[374122995,1753213856080,-648.0,0.00022979,2]
[374122996,1753213856089,-2157.0,0.00022979,2]
[374122997,1753213856098,-968.0,0.00022979,2]
[374122998,1753213856107,-9810.06450645,0.00023,2]
[374122999,1753213856116,-28383.84669877,0.00023,2]
[374123000,1753213856125,-151.0,0.00023,7]
[374123001,1753213856135,-867.544735,0.00023,7]
[374123002,1753213856145,-867.544735,0.00023,7]
[374123003,1753213856154,-2980.03897535,0.00023107,8]
[374123004,1753213856163,-1096.28,0.00023116,2]
[374123005,1753213856173,-1185.09080123,0.00023118,2]
[374123006,1753213856182,-1196.96691478,0.00023118,2]
[374123007,1753213856193,-2821.91837547,0.00023118,2]
[374123008,1753213856202,-703.48896778,0.00023118,2]
[374123009,1753213856214,-1386.64879178,0.00023118,2]
[374123010,1753213856224,-831.32,0.00023119,2]
[374123011,1753213856234,-1215.2,0.0002312,2]
[374123012,1753213856243,-1288.79,0.0002312,2]
[374123013,1753213856253,-1247.68,0.0002312,2]
[374123014,1753213856262,-1243.979132,0.00023121,2]
[374123015,1753213856272,-780.5916825,0.00023121,2]
[374123016,1753213856281,-642.29,0.00023121,2]
[374123017,1753213856290,-500.0,0.00023123,2]
[374123018,1753213856300,-457.0,0.00023123,2]
[374123019,1753213856309,-876.4254277,0.00023233,2]
[374123020,1753213856318,-151.0,0.000233,8]
[374123021,1753213856328,-1000.0,0.00023343,2]
[374123022,1753213856337,-600.0,0.00023347,2]
[374123023,1753213856346,-1215.37,0.00023393,2]
[374123024,1753213856356,-1247.78,0.00023393,2]
[374123025,1753213856364,-500.0,0.00023397,2]
[374123026,1753213856374,-457.0,0.00023397,2]
[374123027,1753213856383,-600.0,0.00023412,2]
[374123028,1753213856392,-2980.03897535,0.00023417,9]
[374123029,1753213856401,-719.77086901,0.00023449,2]
[374123030,1753213856410,-1000.0,0.00023501,2]
[374123031,1753213856420,-153.0,0.00023507,2]
[374123032,1753213856429,-153.0,0.00023507,2]
[374123033,1753213856439,-153.0,0.00023507,2]
[374123034,1753213856448,-153.0,0.00023507,2]
[374123035,1753213856460,-153.0,0.00023507,2]
[374123036,1753213856469,-153.0,0.00023507,2]
[374123037,1753213856478,-153.0,0.00023507,2]
[374123038,1753213856488,-153.0,0.00023507,2]
[374123039,1753213856497,-153.0,0.00023507,2]
[374123040,1753213856506,-153.0,0.00023507,2]
[374123041,1753213856516,-153.0,0.00023507,2]
[374123042,1753213856525,-153.0,0.00023507,2]
[374123043,1753213856535,-153.0,0.00023507,2]
[374123044,1753213856544,-153.0,0.00023507,2]
[374123045,1753213856553,-153.0,0.00023507,2]
[374123046,1753213856563,-153.0,0.00023507,2]
[374123047,1753213856572,-153.0,0.00023507,2]
[374123048,1753213856582,-153.0,0.00023507,2]
[374123049,1753213856591,-1000.0,0.00023507,2]
[374123050,1753213856600,-167.37474869,0.00023531,2]
[374123051,1753213856610,-600.0,0.00023532,2]
[374123052,1753213856619,-326.9,0.00023561,2]
[374123053,1753213856628,-326.9,0.00023561,2]